[Event "Live Chess"]
[Site "Chess.com"]
[Date "2024.06.01"]
[Round "-"]
[White "Tushinskiy"]
[Black "Queensandpawns"]
[Result "1-0"]
[WhiteElo "2214"]
[BlackElo "2460"]
[TimeControl "300"]
[EndTime "9:16:15 PDT"]
[Termination "Tushinskiy won by resignation"]

1. d4 {[%clk 0:04:54]} 1... e5 {[%clk 0:04:59.9]} 2. c3 {[%clk 0:04:53.9]} 2...
exd4 {[%clk 0:04:58.9]} 3. cxd4 {[%clk 0:04:53.5]} 3... d5 {[%clk 0:04:58.8]} 4.
Nc3 {[%clk 0:04:53.4]} 4... Nf6 {[%clk 0:04:58.1]} 5. Nf3 {[%clk 0:04:52.8]}
5... c6 {[%clk 0:04:58]} 6. Bf4 {[%clk 0:04:52.2]} 6... Be6 {[%clk 0:04:57.9]}
7. e3 {[%clk 0:04:51.2]} 7... Bd6 {[%clk 0:04:57.1]} 8. Bg3 {[%clk 0:04:50.1]}
8... O-O {[%clk 0:04:56]} 9. Bd3 {[%clk 0:04:49.2]} 9... Na6 {[%clk 0:04:52.4]}
10. Bxa6 {[%clk 0:04:47.6]} 10... bxa6 {[%clk 0:04:51]} 11. O-O {[%clk
0:04:46.8]} 11... Bxg3 {[%clk 0:04:48.8]} 12. hxg3 {[%clk 0:04:45.5]} 12... Ne4
{[%clk 0:04:48.7]} 13. Nxe4 {[%clk 0:04:43.4]} 13... dxe4 {[%clk 0:04:48.6]} 14.
Ne5 {[%clk 0:04:42.3]} 14... Bd5 {[%clk 0:04:46.5]} 15. Rc1 {[%clk 0:04:39.8]}
15... f6 {[%clk 0:04:45.8]} 16. Nxc6 {[%clk 0:04:37.9]} 16... Qd6 {[%clk
0:04:44]} 17. Qa4 {[%clk 0:04:21.1]} 17... Rfc8 {[%clk 0:04:36.7]} 18. Nb4
{[%clk 0:04:18.7]} 18... Bc4 {[%clk 0:04:33.8]} 19. Rfe1 {[%clk 0:04:10.4]}
19... Bb5 {[%clk 0:04:32.5]} 20. Qb3+ {[%clk 0:04:09.1]} 20... Kh8 {[%clk
0:04:30.7]} 21. a3 {[%clk 0:03:46.4]} 21... a5 {[%clk 0:04:28.4]} 22. Na2 {[%clk
0:03:44.1]} 22... a6 {[%clk 0:04:26.7]} 23. Nc3 {[%clk 0:03:34.7]} 23... Bd3
{[%clk 0:04:23.9]} 24. Qd5 {[%clk 0:03:25.8]} 24... Qe7 {[%clk 0:04:04.5]} 25.
Qxa5 {[%clk 0:03:23.2]} 25... Rcb8 {[%clk 0:04:00.2]} 26. b4 {[%clk 0:03:18.2]}
26... Rc8 {[%clk 0:03:52.6]} 27. Nd5 {[%clk 0:03:14.2]} 27... Qf7 {[%clk
0:03:49.2]} 28. Nf4 {[%clk 0:03:03.1]} 28... g5 {[%clk 0:03:45.6]} 29. Nxd3
{[%clk 0:02:57.8]} 29... exd3 {[%clk 0:03:45.5]} 30. Rcd1 {[%clk 0:02:57.1]}
30... Qb3 {[%clk 0:03:42.3]} 31. Qf5 {[%clk 0:02:53.4]} 31... Rc3 {[%clk
0:03:20]} 32. Qxf6+ {[%clk 0:02:51.4]} 32... Kg8 {[%clk 0:03:19.9]} 33. Qxg5+
{[%clk 0:02:47.3]} 33... Kh8 {[%clk 0:03:19.8]} 34. d5 {[%clk 0:02:39]} 34...
Rf8 {[%clk 0:03:12.5]} 35. d6 {[%clk 0:02:30.2]} 35... Qc2 {[%clk 0:03:10]} 36.
Rf1 {[%clk 0:02:08.3]} 36... Rc6 {[%clk 0:03:08.8]} 37. d7 {[%clk 0:01:55.2]}
37... Rcf6 {[%clk 0:03:08.7]} 38. d8=Q {[%clk 0:01:42.3]} 38... Rxf2 {[%clk
0:03:04.8]} 39. Qd4+ {[%clk 0:01:38.7]} 39... R8f6 {[%clk 0:02:59.8]} 40. Rxf2
{[%clk 0:01:30.2]} 40... Qxd1+ {[%clk 0:02:51.3]} 41. Kh2 {[%clk 0:01:28]} 1-0

[Event "Live Chess"]
[Site "Chess.com"]
[Date "2024.06.01"]
[Round "-"]
[White "Colm_Buckley"]
[Black "Grieve72"]
[Result "0-1"]
[WhiteElo "1817"]
[BlackElo "2650"]
[TimeControl "300"]
[EndTime "9:16:18 PDT"]
[Termination "Grieve72 won by checkmate"]

1. d4 {[%clk 0:04:57.2]} 1... e6 {[%clk 0:04:58.4]} 2. c4 {[%clk 0:04:56.1]}
2... b6 {[%clk 0:04:58]} 3. Nc3 {[%clk 0:04:54.9]} 3... Bb7 {[%clk 0:04:57.6]}
4. Nf3 {[%clk 0:04:50.5]} 4... f5 {[%clk 0:04:56.7]} 5. Bg5 {[%clk 0:04:38.7]}
5... Be7 {[%clk 0:04:54.7]} 6. Bxe7 {[%clk 0:04:37.2]} 6... Qxe7 {[%clk
0:04:54.6]} 7. e3 {[%clk 0:04:36]} 7... Nf6 {[%clk 0:04:54.3]} 8. Bd3 {[%clk
0:04:34.2]} 8... O-O {[%clk 0:04:54]} 9. Qc2 {[%clk 0:04:31.2]} 9... d6 {[%clk
0:04:49.8]} 10. h4 {[%clk 0:04:27.9]} 10... Nbd7 {[%clk 0:04:48]} 11. O-O-O
{[%clk 0:04:23]} 11... e5 {[%clk 0:04:46.4]} 12. dxe5 {[%clk 0:04:14.4]} 12...
Nxe5 {[%clk 0:04:29.2]} 13. Nxe5 {[%clk 0:04:08.3]} 13... dxe5 {[%clk
0:04:27.2]} 14. Bxf5 {[%clk 0:04:02.2]} 14... e4 {[%clk 0:04:26.8]} 15. Bh3
{[%clk 0:03:24.5]} 15... a6 {[%clk 0:04:06.5]} 16. Rd4 {[%clk 0:03:12.2]} 16...
b5 {[%clk 0:03:59.4]} 17. cxb5 {[%clk 0:02:58.6]} 17... axb5 {[%clk 0:03:57.5]}
18. Kb1 {[%clk 0:02:57.2]} 18... c5 {[%clk 0:03:50.8]} 19. Rd2 {[%clk
0:02:45.7]} 19... b4 {[%clk 0:03:50]} 20. Ne2 {[%clk 0:02:31.4]} 20... Ba6
{[%clk 0:03:35.6]} 21. Nf4 {[%clk 0:02:18.6]} 21... Kh8 {[%clk 0:03:23.8]} 22.
Rhd1 {[%clk 0:02:12.2]} 22... c4 {[%clk 0:03:17.2]} 23. Rd4 {[%clk 0:01:47.2]}
23... b3 {[%clk 0:03:11.8]} 24. axb3 {[%clk 0:01:34.3]} 24... cxb3 {[%clk
0:03:11.7]} 25. Qxb3 {[%clk 0:01:33.1]} 25... Rfb8 {[%clk 0:03:06.8]} 26. Qe6
{[%clk 0:01:23.2]} 26... Qa7 {[%clk 0:02:54.5]} 27. Bf5 {[%clk 0:00:31]} 27...
Bd3+ {[%clk 0:02:51.6]} 28. Nxd3 {[%clk 0:00:30]} 28... exd3 {[%clk 0:02:50.5]}
29. R1xd3 {[%clk 0:00:19.6]} 29... Qa1+ {[%clk 0:02:45.3]} 30. Kc2 {[%clk
0:00:18.3]} 30... Rxb2+ {[%clk 0:02:44.9]} 31. Kc3 {[%clk 0:00:17.1]} 31... Qc1#
{[%clk 0:02:44.6]} 0-1

[Event "Live Chess"]
[Site "Chess.com"]
[Date "2024.06.01"]
[Round "-"]
[White "mrsmarple1968"]
[Black "TC2304"]
[Result "0-1"]
[WhiteElo "1811"]
[BlackElo "2333"]
[TimeControl "300"]
[EndTime "9:16:22 PDT"]
[Termination "TC2304 won by resignation"]

1. e4 {[%clk 0:04:56.2]} 1... Nc6 {[%clk 0:04:59.5]} 2. Nc3 {[%clk 0:04:54]}
2... d6 {[%clk 0:04:54.7]} 3. Nf3 {[%clk 0:04:50.8]} 3... Nf6 {[%clk 0:04:53.8]}
4. d4 {[%clk 0:04:48.5]} 4... g6 {[%clk 0:04:51.6]} 5. Be3 {[%clk 0:04:46.4]}
5... Bg7 {[%clk 0:04:51.1]} 6. Be2 {[%clk 0:04:44.6]} 6... e5 {[%clk 0:04:47.4]}
7. d5 {[%clk 0:04:42.4]} 7... Ne7 {[%clk 0:04:39]} 8. h3 {[%clk 0:04:40.3]} 8...
c6 {[%clk 0:04:37.6]} 9. Qd2 {[%clk 0:04:28.3]} 9... cxd5 {[%clk 0:04:36.2]} 10.
exd5 {[%clk 0:04:26.1]} 10... Nf5 {[%clk 0:04:35.7]} 11. g4 {[%clk 0:04:13.4]}
11... Nxe3 {[%clk 0:04:34.8]} 12. fxe3 {[%clk 0:04:12.7]} 12... O-O {[%clk
0:04:25.2]} 13. O-O-O {[%clk 0:04:08.8]} 13... Bd7 {[%clk 0:04:12.5]} 14. g5
{[%clk 0:04:03.8]} 14... Nh5 {[%clk 0:04:05.3]} 15. h4 {[%clk 0:03:48.7]} 15...
b5 {[%clk 0:03:56.3]} 16. Rhg1 {[%clk 0:03:33.6]} 16... b4 {[%clk 0:03:38.2]}
17. Ne4 {[%clk 0:03:30]} 17... Bf5 {[%clk 0:03:37.2]} 18. Ng3 {[%clk 0:03:04.3]}
18... Nxg3 {[%clk 0:03:35.7]} 19. Rxg3 {[%clk 0:03:02.5]} 19... Rc8 {[%clk
0:03:35]} 20. Ne1 {[%clk 0:02:53.8]} 20... Qa5 {[%clk 0:03:13.5]} 21. Kb1 {[%clk
0:02:48]} 21... e4 {[%clk 0:03:02.6]} 22. Bg4 {[%clk 0:02:26.8]} 22... Bc3
{[%clk 0:02:45.4]} 23. Qe2 {[%clk 0:02:12.7]} 23... Bxg4 {[%clk 0:02:35.2]} 24.
Rxg4 {[%clk 0:01:52.3]} 24... Rc7 {[%clk 0:02:27.3]} 25. Rxe4 {[%clk 0:01:33.2]}
25... Rb8 {[%clk 0:02:16.5]} 26. Rc4 {[%clk 0:01:20.6]} 26... Rbc8 {[%clk
0:02:01.2]} 27. Rxc7 {[%clk 0:01:17]} 27... Rxc7 {[%clk 0:02:01.1]} 28. Qd3
{[%clk 0:01:01.9]} 28... Qc5 {[%clk 0:01:48.9]} 29. e4 {[%clk 0:00:55.5]} 29...
Re7 {[%clk 0:01:43.7]} 30. Ng2 {[%clk 0:00:35.8]} 30... Be5 {[%clk 0:01:35]} 31.
Ne3 {[%clk 0:00:33.7]} 31... a5 {[%clk 0:01:33.4]} 32. Ng4 {[%clk 0:00:32]}
32... a4 {[%clk 0:01:29.3]} 33. Nh6+ {[%clk 0:00:29.6]} 33... Kg7 {[%clk
0:01:24.8]} 34. Qf3 {[%clk 0:00:26.4]} 34... f6 {[%clk 0:00:59.1]} 35. Ng4
{[%clk 0:00:20.3]} 35... f5 {[%clk 0:00:52.5]} 36. exf5 {[%clk 0:00:18.6]} 36...
gxf5 {[%clk 0:00:49.6]} 37. Qf4 {[%clk 0:00:17.7]} 37... Bxf4 {[%clk 0:00:48.3]}
0-1

[Event "Live Chess"]
[Site "Chess.com"]
[Date "2024.06.01"]
[Round "-"]
[White "Delacorta"]
[Black "Andysav3"]
[Result "0-1"]
[WhiteElo "1400"]
[BlackElo "1828"]
[TimeControl "300"]
[EndTime "9:16:43 PDT"]
[Termination "Andysav3 won by resignation"]

1. d4 {[%clk 0:04:56.6]} 1... Nf6 {[%clk 0:04:58.3]} 2. Nf3 {[%clk 0:04:55.4]}
2... e6 {[%clk 0:04:56.4]} 3. e3 {[%clk 0:04:54.6]} 3... c5 {[%clk 0:04:54.4]}
4. Bd3 {[%clk 0:04:52.9]} 4... d5 {[%clk 0:04:50.8]} 5. b3 {[%clk 0:04:51.7]}
5... Be7 {[%clk 0:04:48.7]} 6. Bb2 {[%clk 0:04:50.3]} 6... O-O {[%clk
0:04:47.8]} 7. Nbd2 {[%clk 0:04:48.7]} 7... Nc6 {[%clk 0:04:41.8]} 8. O-O {[%clk
0:04:46.2]} 8... a6 {[%clk 0:04:38.4]} 9. a3 {[%clk 0:04:44.4]} 9... b5 {[%clk
0:04:36.8]} 10. Ne5 {[%clk 0:04:42.9]} 10... Bb7 {[%clk 0:04:26.4]} 11. c4
{[%clk 0:04:27.3]} 11... bxc4 {[%clk 0:04:17.4]} 12. bxc4 {[%clk 0:04:19.6]}
12... Qc7 {[%clk 0:04:14.5]} 13. f4 {[%clk 0:04:17.5]} 13... a5 {[%clk
0:04:03.2]} 14. Rb1 {[%clk 0:04:13.4]} 14... Rab8 {[%clk 0:03:59.9]} 15. Bc3
{[%clk 0:04:08.4]} 15... Ba8 {[%clk 0:03:53.2]} 16. Rf3 {[%clk 0:03:55.8]} 16...
Qa7 {[%clk 0:03:39.9]} 17. Rh3 {[%clk 0:03:28.8]} 17... cxd4 {[%clk 0:03:33.4]}
18. Nxc6 {[%clk 0:03:03.5]} 18... Bxc6 {[%clk 0:03:31.9]} 19. Bxd4 {[%clk
0:02:59.5]} 19... Bc5 {[%clk 0:03:10.4]} 20. Bxf6 {[%clk 0:02:28.8]} 20... Bxe3+
{[%clk 0:03:07.9]} 21. Kh1 {[%clk 0:02:27.3]} 21... g6 {[%clk 0:02:59.8]} 22.
Nf3 {[%clk 0:01:52.4]} 22... Bxf4 {[%clk 0:02:47.9]} 23. Rh4 {[%clk 0:01:32.5]}
23... Qe3 {[%clk 0:02:30]} 24. Bd4 {[%clk 0:01:16.6]} 24... Rxb1 {[%clk
0:02:13.2]} 25. Qxb1 {[%clk 0:01:10.3]} 25... Qc1+ {[%clk 0:02:08.1]} 26. Qxc1
{[%clk 0:01:07.4]} 26... Bxc1 {[%clk 0:02:06.6]} 27. Ne5 {[%clk 0:00:59.2]}
27... Be8 {[%clk 0:01:48]} 28. c5 {[%clk 0:00:53.9]} 28... f6 {[%clk 0:01:36.3]}
29. c6 {[%clk 0:00:44.3]} 29... fxe5 {[%clk 0:01:32]} 30. Bxe5 {[%clk
0:00:39.1]} 30... Bxc6 {[%clk 0:01:28.8]} 0-1

[Event "Live Chess"]
[Site "Chess.com"]
[Date "2024.06.01"]
[Round "-"]
[White "RuslanChessN"]
[Black "Ferrarifan27"]
[Result "1-0"]
[WhiteElo "1986"]
[BlackElo "2071"]
[TimeControl "300"]
[EndTime "9:16:45 PDT"]
[Termination "RuslanChessN won by checkmate"]

1. d4 {[%clk 0:04:56.4]} 1... Nf6 {[%clk 0:04:58.4]} 2. c4 {[%clk 0:04:55.5]}
2... e6 {[%clk 0:04:57.5]} 3. Nc3 {[%clk 0:04:54.5]} 3... Bb4 {[%clk 0:04:56.7]}
4. Qc2 {[%clk 0:04:52.7]} 4... O-O {[%clk 0:04:55.6]} 5. e4 {[%clk 0:04:51.1]}
5... d6 {[%clk 0:04:52.7]} 6. f4 {[%clk 0:04:48.8]} 6... b6 {[%clk 0:04:50.7]}
7. Bd3 {[%clk 0:04:46.3]} 7... h6 {[%clk 0:04:47.7]} 8. Nf3 {[%clk 0:04:44.8]}
8... Bb7 {[%clk 0:04:46.6]} 9. O-O {[%clk 0:04:41.5]} 9... Nbd7 {[%clk
0:04:44.9]} 10. Bd2 {[%clk 0:04:40.4]} 10... Re8 {[%clk 0:04:40.6]} 11. e5
{[%clk 0:04:36.6]} 11... dxe5 {[%clk 0:04:39]} 12. fxe5 {[%clk 0:04:33.3]} 12...
Nh5 {[%clk 0:04:08.2]} 13. g4 {[%clk 0:04:21.4]} 13... Nhf6 {[%clk 0:03:59.8]}
14. exf6 {[%clk 0:04:13.8]} 14... Nxf6 {[%clk 0:03:59.7]} 15. h3 {[%clk
0:04:01.7]} 15... Bxf3 {[%clk 0:03:58]} 16. Rxf3 {[%clk 0:03:59.3]} 16... Qxd4+
{[%clk 0:03:57.3]} 17. Kg2 {[%clk 0:03:58.1]} 17... Qd7 {[%clk 0:03:44.1]} 18.
a3 {[%clk 0:03:55.7]} 18... Bd6 {[%clk 0:03:37.7]} 19. Rd1 {[%clk 0:03:51.7]}
19... Rad8 {[%clk 0:03:34.5]} 20. Bf4 {[%clk 0:03:48.6]} 20... e5 {[%clk
0:03:31.1]} 21. Bf5 {[%clk 0:03:39]} 21... Qc6 {[%clk 0:03:26.8]} 22. Bg3 {[%clk
0:03:34.1]} 22... Qxc4 {[%clk 0:03:06.1]} 23. Qe2 {[%clk 0:03:13]} 23... Qc6
{[%clk 0:02:56.8]} 24. Ne4 {[%clk 0:03:03.6]} 24... Nxe4 {[%clk 0:02:46.6]} 25.
Bxe4 {[%clk 0:02:56.2]} 25... Qc5 {[%clk 0:02:43.4]} 26. Bd5 {[%clk 0:02:52.4]}
26... Rd7 {[%clk 0:02:14.2]} 27. b4 {[%clk 0:02:50.3]} 27... e4 {[%clk
0:01:58.8]} 28. Rb3 {[%clk 0:02:34.9]} 28... Bxg3 {[%clk 0:00:49.6]} 29. bxc5
{[%clk 0:02:29.8]} 29... Bf4 {[%clk 0:00:47.1]} 30. Bc6 {[%clk 0:02:16.8]} 30...
Rxd1 {[%clk 0:00:43.8]} 31. Qxd1 {[%clk 0:02:16.7]} 31... Re6 {[%clk 0:00:39.5]}
32. Qd7 {[%clk 0:01:49.7]} 32... e3 {[%clk 0:00:27.9]} 33. Bd5 {[%clk
0:01:46.7]} 33... e2 {[%clk 0:00:18.5]} 34. Rb1 {[%clk 0:01:38.5]} 34... e1=Q
{[%clk 0:00:16.9]} 35. Rxe1 {[%clk 0:01:37.3]} 35... Rxe1 {[%clk 0:00:16.8]} 36.
Qxf7+ {[%clk 0:01:35.7]} 36... Kh7 {[%clk 0:00:16.2]} 37. Qf5+ {[%clk
0:01:25.5]} 37... Kh8 {[%clk 0:00:14.2]} 38. Qf8+ {[%clk 0:01:16]} 38... Kh7
{[%clk 0:00:13.3]} 39. Qxf4 {[%clk 0:01:15.6]} 39... Re2+ {[%clk 0:00:11.6]} 40.
Kg3 {[%clk 0:01:13.5]} 40... bxc5 {[%clk 0:00:07.3]} 41. Qf8 {[%clk 0:01:07.3]}
41... Re3+ {[%clk 0:00:05.1]} 42. Kf2 {[%clk 0:01:04.7]} 42... Rxh3 {[%clk
0:00:02.3]} 43. Bg8+ {[%clk 0:01:03.4]} 43... Kg6 {[%clk 0:00:01.4]} 44. Qf5#
{[%clk 0:00:58.2]} 1-0

[Event "Live Chess"]
[Site "Chess.com"]
[Date "2024.06.01"]
[Round "-"]
[White "PureDashingOctopus"]
[Black "JohanKjeldahl"]
[Result "1-0"]
[WhiteElo "2229"]
[BlackElo "1876"]
[TimeControl "300"]
[EndTime "9:16:52 PDT"]
[Termination "PureDashingOctopus won by checkmate"]

1. e4 {[%clk 0:04:57.9]} 1... c5 {[%clk 0:04:42.4]} 2. Nc3 {[%clk 0:04:56.4]}
2... e6 {[%clk 0:04:40.7]} 3. Nge2 {[%clk 0:04:54.5]} 3... Nc6 {[%clk
0:04:38.2]} 4. d4 {[%clk 0:04:53.3]} 4... cxd4 {[%clk 0:04:35.9]} 5. Nxd4 {[%clk
0:04:51.9]} 5... a6 {[%clk 0:04:35]} 6. Be3 {[%clk 0:04:46.8]} 6... Qc7 {[%clk
0:04:33]} 7. g4 {[%clk 0:04:43.4]} 7... h6 {[%clk 0:04:28.1]} 8. Qd2 {[%clk
0:04:38.4]} 8... Nf6 {[%clk 0:04:26]} 9. f3 {[%clk 0:04:35.7]} 9... Be7 {[%clk
0:04:22.7]} 10. O-O-O {[%clk 0:04:33]} 10... b5 {[%clk 0:04:20.5]} 11. h4 {[%clk
0:04:27.5]} 11... Ne5 {[%clk 0:04:15.1]} 12. Be2 {[%clk 0:04:15.9]} 12... Bb7
{[%clk 0:04:12.5]} 13. g5 {[%clk 0:04:14.3]} 13... Ng8 {[%clk 0:03:56.7]} 14.
Ndxb5 {[%clk 0:03:36.5]} 14... axb5 {[%clk 0:03:53.1]} 15. Nxb5 {[%clk 0:03:36]}
15... Qa5 {[%clk 0:03:41.3]} 16. Qxa5 {[%clk 0:02:46.5]} 16... Rxa5 {[%clk
0:03:39.1]} 17. Bb6 {[%clk 0:02:45.5]} 17... Rxa2 {[%clk 0:03:33.8]} 18. Kb1
{[%clk 0:02:44.4]} 18... Ra4 {[%clk 0:03:23]} 19. b3 {[%clk 0:02:41.6]} 19...
Rb4 {[%clk 0:03:17.2]} 20. Ba5 {[%clk 0:02:39.7]} 20... Nxf3 {[%clk 0:02:54.4]}
21. Bxb4 {[%clk 0:02:36.1]} 21... Ne5 {[%clk 0:02:46.9]} 22. Nd6+ {[%clk
0:02:33]} 22... Bxd6 {[%clk 0:02:41.3]} 23. Bxd6 {[%clk 0:02:31.9]} 23... Nc6
{[%clk 0:02:37.4]} 24. gxh6 {[%clk 0:01:58.9]} 24... Rxh6 {[%clk 0:02:33.8]} 25.
Rdg1 {[%clk 0:01:51.4]} 25... Nd4 {[%clk 0:02:23.5]} 26. Rxg7 {[%clk 0:01:39.3]}
26... Rh8 {[%clk 0:02:09.7]} 27. Rhg1 {[%clk 0:01:11.8]} 27... Nh6 {[%clk
0:02:08.4]} 28. Bd3 {[%clk 0:00:59.4]} 28... Nf3 {[%clk 0:01:58.9]} 29. R1g3
{[%clk 0:00:46.9]} 29... Nxh4 {[%clk 0:01:56.4]} 30. Bf4 {[%clk 0:00:37.6]}
30... Ng6 {[%clk 0:01:51.3]} 31. Bd6 {[%clk 0:00:27.2]} 31... Rg8 {[%clk
0:01:36.1]} 32. Rxg8+ {[%clk 0:00:25.9]} 32... Nxg8 {[%clk 0:01:34.8]} 33. e5
{[%clk 0:00:25.8]} 33... N8e7 {[%clk 0:01:17.5]} 34. Bxg6 {[%clk 0:00:25.3]}
34... Nxg6 {[%clk 0:01:16.1]} 35. Rc3 {[%clk 0:00:25]} 35... Bc6 {[%clk
0:01:13.1]} 36. b4 {[%clk 0:00:24]} 36... Kd8 {[%clk 0:01:07.3]} 37. Rc5 {[%clk
0:00:21.1]} 37... Nf4 {[%clk 0:00:58.5]} 38. b5 {[%clk 0:00:20]} 38... Bd5
{[%clk 0:00:54.4]} 39. b6 {[%clk 0:00:19]} 39... Ne2 {[%clk 0:00:43.6]} 40. Rxd5
{[%clk 0:00:15.7]} 40... Nc3+ {[%clk 0:00:38.9]} 41. Kb2 {[%clk 0:00:14.9]}
41... Nxd5 {[%clk 0:00:36.2]} 42. b7 {[%clk 0:00:14.1]} 42... Nc3 {[%clk
0:00:25.8]} 43. b8=Q# {[%clk 0:00:13.1]} 1-0

[Event "Live Chess"]
[Site "Chess.com"]
[Date "2024.06.01"]
[Round "-"]
[White "GEMdzq"]
[Black "Trendle"]
[Result "0-1"]
[WhiteElo "2332"]
[BlackElo "2622"]
[TimeControl "300"]
[EndTime "9:16:53 PDT"]
[Termination "Trendle won by resignation"]

1. e4 {[%clk 0:04:57.9]} 1... e6 {[%clk 0:04:55.5]} 2. d4 {[%clk 0:04:56.7]}
2... d5 {[%clk 0:04:55.1]} 3. Nc3 {[%clk 0:04:55.1]} 3... Nc6 {[%clk 0:04:54.3]}
4. Bb5 {[%clk 0:04:48.7]} 4... Bb4 {[%clk 0:04:49.4]} 5. e5 {[%clk 0:04:45.4]}
5... Bd7 {[%clk 0:04:45.3]} 6. Bxc6 {[%clk 0:04:35.4]} 6... Bxc6 {[%clk
0:04:38]} 7. Qg4 {[%clk 0:04:34.3]} 7... Bf8 {[%clk 0:04:33.9]} 8. Nge2 {[%clk
0:04:29.7]} 8... Nh6 {[%clk 0:04:23.1]} 9. Bxh6 {[%clk 0:04:18.4]} 9... gxh6
{[%clk 0:04:17.3]} 10. h4 {[%clk 0:04:14.5]} 10... Qe7 {[%clk 0:04:02.2]} 11.
O-O-O {[%clk 0:04:12]} 11... O-O-O {[%clk 0:04:00.8]} 12. Rh3 {[%clk 0:04:01.2]}
12... f5 {[%clk 0:03:50.1]} 13. exf6 {[%clk 0:03:57]} 13... Qxf6 {[%clk
0:03:49]} 14. Rf3 {[%clk 0:03:55.7]} 14... Qe7 {[%clk 0:03:41.4]} 15. Re3 {[%clk
0:03:51.8]} 15... Bd7 {[%clk 0:03:38.8]} 16. Qf3 {[%clk 0:03:38.7]} 16... Qxh4
{[%clk 0:03:33.4]} 17. g3 {[%clk 0:03:36]} 17... Qg5 {[%clk 0:03:28.7]} 18. Nf4
{[%clk 0:03:35.2]} 18... Bd6 {[%clk 0:03:26.1]} 19. Nxe6 {[%clk 0:03:32.3]}
19... Bxe6 {[%clk 0:03:24]} 20. Nb5 {[%clk 0:03:21.9]} 20... Bg4 {[%clk
0:03:19.2]} 21. Nxd6+ {[%clk 0:03:19.8]} 21... Rxd6 {[%clk 0:03:15.8]} 0-1

[Event "Live Chess"]
[Site "Chess.com"]
[Date "2024.06.01"]
[Round "-"]
[White "ACM42"]
[Black "GerardATHart"]
[Result "1-0"]
[WhiteElo "2214"]
[BlackElo "1453"]
[TimeControl "300"]
[EndTime "9:16:59 PDT"]
[Termination "ACM42 won by checkmate"]

1. e4 {[%clk 0:04:58.8]} 1... e5 {[%clk 0:04:58]} 2. Nf3 {[%clk 0:04:56]} 2...
Nc6 {[%clk 0:04:53.6]} 3. Bc4 {[%clk 0:04:53.4]} 3... Nf6 {[%clk 0:04:47.1]} 4.
d4 {[%clk 0:04:52]} 4... exd4 {[%clk 0:04:41.9]} 5. e5 {[%clk 0:04:51.1]} 5...
Ne4 {[%clk 0:04:34.5]} 6. Bd5 {[%clk 0:04:46]} 6... Nc5 {[%clk 0:04:29.2]} 7.
Nxd4 {[%clk 0:04:43.9]} 7... Nxe5 {[%clk 0:04:25.1]} 8. O-O {[%clk 0:04:43.1]}
8... d6 {[%clk 0:04:22.7]} 9. f4 {[%clk 0:04:37.1]} 9... Ng6 {[%clk 0:04:15.2]}
10. f5 {[%clk 0:04:23.2]} 10... Ne7 {[%clk 0:04:11.6]} 11. Bc4 {[%clk
0:03:34.7]} 11... d5 {[%clk 0:04:00.9]} 12. Be2 {[%clk 0:03:31.2]} 12... Nc6
{[%clk 0:03:51.9]} 13. Nc3 {[%clk 0:03:18.4]} 13... Be7 {[%clk 0:03:36.8]} 14.
Bf3 {[%clk 0:03:04.1]} 14... O-O {[%clk 0:03:25.7]} 15. Nxd5 {[%clk 0:02:58.3]}
15... Ne5 {[%clk 0:03:22.1]} 16. Nxe7+ {[%clk 0:02:49.5]} 16... Qxe7 {[%clk
0:03:10.4]} 17. f6 {[%clk 0:02:48.2]} 17... gxf6 {[%clk 0:02:52.5]} 18. Bh6
{[%clk 0:02:47.3]} 18... Rd8 {[%clk 0:02:46.3]} 19. c3 {[%clk 0:02:46.4]} 19...
Bf5 {[%clk 0:02:43.1]} 20. Nxf5 {[%clk 0:02:43.7]} 20... Qe6 {[%clk 0:02:21.5]}
21. Nd4 {[%clk 0:02:36.6]} 21... Qc4 {[%clk 0:02:07.7]} 22. Qe1 {[%clk 0:02:32]}
22... Ng6 {[%clk 0:02:00.3]} 23. b3 {[%clk 0:02:24.5]} 23... Qd3 {[%clk
0:01:44.3]} 24. Rd1 {[%clk 0:02:21]} 24... Qxd1 {[%clk 0:01:08.9]} 25. Qxd1
{[%clk 0:02:17.5]} 25... Ne6 {[%clk 0:01:07.2]} 26. Qc2 {[%clk 0:02:13.6]} 26...
c5 {[%clk 0:01:03.3]} 27. Nf5 {[%clk 0:02:10.9]} 27... Rd7 {[%clk 0:00:53.2]}
28. h4 {[%clk 0:02:10.1]} 28... Rad8 {[%clk 0:00:44.8]} 29. h5 {[%clk
0:02:08.6]} 29... Rd2 {[%clk 0:00:41.4]} 30. Bxd2 {[%clk 0:02:07.1]} 30... Ne5
{[%clk 0:00:31.8]} 31. Bxb7 {[%clk 0:01:59.8]} 31... Ng5 {[%clk 0:00:27.9]} 32.
Bxg5 {[%clk 0:01:58.3]} 32... fxg5 {[%clk 0:00:25.2]} 33. Nh6+ {[%clk 0:01:53]}
33... Kg7 {[%clk 0:00:20.8]} 34. Qf5 {[%clk 0:01:52.1]} 34... f6 {[%clk
0:00:17.6]} 35. Qxf6# {[%clk 0:01:50.5]} 1-0

[Event "Live Chess"]
[Site "Chess.com"]
[Date "2024.06.01"]
[Round "-"]
[White "Ratt6809"]
[Black "RamsayFlayer"]
[Result "0-1"]
[WhiteElo "296"]
[BlackElo "1964"]
[TimeControl "300"]
[EndTime "9:17:00 PDT"]
[Termination "RamsayFlayer won by checkmate"]

1. e4 {[%clk 0:04:57]} 1... e5 {[%clk 0:04:59.5]} 2. Nf3 {[%clk 0:04:56.1]} 2...
Nc6 {[%clk 0:04:58.4]} 3. d4 {[%clk 0:04:54.9]} 3... exd4 {[%clk 0:04:57.4]} 4.
Nxd4 {[%clk 0:04:53.8]} 4... Bc5 {[%clk 0:04:57.1]} 5. c3 {[%clk 0:04:51.9]}
5... Qf6 {[%clk 0:04:55.4]} 6. Be3 {[%clk 0:04:46.5]} 6... Nge7 {[%clk 0:04:54]}
7. Bc4 {[%clk 0:04:40.6]} 7... Ne5 {[%clk 0:04:52.5]} 8. Bd5 {[%clk 0:04:36.5]}
8... Nxd5 {[%clk 0:04:49.7]} 9. exd5 {[%clk 0:04:34.9]} 9... Nc4 {[%clk
0:04:41.6]} 10. Bf4 {[%clk 0:04:32.5]} 10... Qxf4 {[%clk 0:04:35.6]} 11. O-O
{[%clk 0:04:25.9]} 11... Nxb2 {[%clk 0:04:31.4]} 12. Qe1+ {[%clk 0:04:23.7]}
12... Be7 {[%clk 0:04:24.1]} 13. Na3 {[%clk 0:04:19.4]} 13... Nd3 {[%clk
0:04:16.5]} 14. g3 {[%clk 0:04:09.2]} 14... Nxe1 {[%clk 0:04:06]} 15. Rfxe1
{[%clk 0:04:07]} 15... Qg5 {[%clk 0:03:57.1]} 16. f4 {[%clk 0:04:04.8]} 16...
Qf6 {[%clk 0:03:55.1]} 17. Rad1 {[%clk 0:03:57.6]} 17... O-O {[%clk 0:03:52.8]}
18. Re2 {[%clk 0:03:54.5]} 18... Bxa3 {[%clk 0:03:51.1]} 19. Rde1 {[%clk
0:03:53]} 19... Bc5 {[%clk 0:03:42.7]} 20. g4 {[%clk 0:03:44.5]} 20... Bxd4+
{[%clk 0:03:40.7]} 21. cxd4 {[%clk 0:03:42.6]} 21... Qxd4+ {[%clk 0:03:40.6]}
22. Kg2 {[%clk 0:03:40.4]} 22... Qxd5+ {[%clk 0:03:38.4]} 23. Kh3 {[%clk
0:03:36.2]} 23... Qf3+ {[%clk 0:03:34.5]} 24. Kh4 {[%clk 0:03:32.8]} 24... Qxf4
{[%clk 0:03:32.7]} 25. Kh5 {[%clk 0:03:21]} 25... d5 {[%clk 0:03:27.6]} 26. Re5
{[%clk 0:03:17.3]} 26... Qxg4# {[%clk 0:03:25.4]} 0-1